bitfinex-derivatives/quotes_SOLF0:USTF0_20241011
["timestamp","ask_amount","ask_price","bid_price","bid_amount"]
[1728664280266,3.4622,144.44,144.42,5.72]
[1728664280964,10.65,144.44,144.42,5.72]
[1728664281266,10.65,144.45,144.42,5.72]
[1728664281456,14.1119,144.45,144.42,9.1825]
[1728664282068,14.1122,144.44,144.42,5.72]
[1728664282467,0.12502,144.47,144.42,16.37]
[1728664282660,0.12502,144.47,144.45,10.65]
[1728664283055,0.12502,144.47,144.43,10.65]
[1728664283262,0.12502,144.47,144.44,3.4619]
[1728664283461,10.77502,144.47,144.44,3.4619]
[1728664284161,0.12502,144.47,144.45,3.4617]
[1728664284965,0.12502,144.47,144.44,10.65]
[1728664285360,0.12502,144.47,144.46,10.65]
[1728664285572,0.12502,144.47,144.46,16.35]
[1728664285964,0.12502,144.47,144.46,5.7]
[1728664286271,3.58642,144.47,144.46,5.7]
[1728664288571,0.12502,144.47,144.45,2.2381]
[1728664288973,10.65,144.46,144.45,2.2381]
[1728664289170,3.4623,144.44,144.43,5.7]
[1728664290476,14.1123,144.44,144.43,5.7]
[1728664291572,3.4623,144.44,144.43,5.7]
[1728664292676,3.462,144.45,144.43,5.7]
[1728664293774,3.4621,144.44,144.43,5.7]
[1728664294365,3.4617,144.46,144.43,5.7]
[1728664294571,3.4617,144.46,144.44,10.65]
[1728664294974,3.4616,144.46,144.44,10.65]
[1728664295168,3.4616,144.46,144.43,16.35]
[1728664295582,10.77502,144.47,144.43,16.35]
[1728664295775,14.23662,144.47,144.43,16.35]
[1728664296567,14.23662,144.47,144.43,19.8122]
[1728664296778,3.4617,144.46,144.43,19.8122]
[1728664298181,3.4617,144.46,144.44,5.72]
[1728664298779,3.4616,144.46,144.44,5.72]
[1728664298972,10.77502,144.47,144.44,5.72]
[1728664299380,3.4619,144.46,144.44,5.72]
[1728664301581,3.4619,144.45,144.44,5.72]
[1728664301777,10.65,144.45,144.4,11.9649]
[1728664302076,3.4624,144.43,144.41,5.72]
[1728664303877,10.65,144.45,144.41,5.72]
[1728664304080,3.4626,144.42,144.41,5.72]
[1728664304679,3.4624,144.43,144.41,5.72]
[1728664304868,10.65,144.44,144.41,5.72]
[1728664305779,3.4626,144.42,144.41,5.72]
[1728664309270,3.4625,144.43,144.4,3.463]
[1728664309482,3.4625,144.43,144.4,16.37]
[1728664310370,3.4625,144.43,144.41,3.4627]
[1728664311175,10.65,144.45,144.4,16.37]
[1728664311378,10.65,144.45,144.4,19.833]
[1728664311576,10.65,144.44,144.4,9.183]
[1728664311773,10.65,144.44,144.4,5.72]
[1728664312172,3.4624,144.43,144.4,5.72]
[1728664312376,10.65,144.44,144.4,5.72]
[1728664312981,3.4628,144.42,144.4,5.72]
[1728664313275,0.12502,144.47,144.41,10.65]
[1728664313481,10.65,144.46,144.41,10.65]
[1728664313782,10.65,144.43,144.4,5.72]
[1728664314284,14.1125,144.43,144.4,5.72]
[1728664314583,14.1125,144.43,144.4,9.183]
[1728664315487,3.4628,144.42,144.4,5.72]
[1728664315680,10.65,144.43,144.4,5.72]
[1728664315883,10.65,144.42,144.39,1.3938]
[1728664316080,10.65,144.42,144.39,7.4738]
[1728664316681,3.463,144.41,144.39,7.4738]
[1728664316883,10.65,144.42,144.39,7.4738]
[1728664317282,3.463,144.41,144.39,7.4738]
[1728664319983,3.4631,144.4,144.39,6.08]
[1728664320187,10.65,144.41,144.37,6.08]
[1728664320388,10.65,144.42,144.37,16.73]
[1728664320790,3.463,144.41,144.38,3.4634]
[1728664321589,10.65,144.42,144.38,3.4634]
[1728664321785,3.4631,144.4,144.38,3.4634]
[1728664322387,3.4627,144.42,144.4,3.463]
[1728664323287,10.65,144.42,144.37,16.73]
[1728664323893,3.4632,144.4,144.38,3.4634]
[1728664324490,10.65,144.41,144.37,9.5436]
[1728664325288,10.65,144.44,144.38,10.65]
[1728664325594,7.04802,144.47,144.39,3.4631]
[1728664325789,3.4629,144.41,144.39,3.4631]
[1728664326387,3.4631,144.4,144.38,3.4634]
[1728664327294,10.65,144.41,144.37,6.08]
[1728664327592,3.4635,144.39,144.37,9.5436]
[1728664328995,3.4636,144.38,144.37,6.08]
[1728664329190,3.4636,144.38,144.36,3.4639]
[1728664329495,3.4636,144.38,144.36,9.5439]
[1728664329892,10.65,144.4,144.36,6.08]
[1728664330091,3.4634,144.39,144.37,3.4638]
[1728664330287,6.9236,144.46,144.36,6.08]
[1728664330501,3.4618,144.46,144.43,3.4622]
[1728664330705,0.12502,144.47,144.43,10.65]
[1728664331199,0.12502,144.47,144.42,12.0131]
[1728664331402,10.65,144.46,144.42,12.0131]
[1728664331900,3.462,144.45,144.42,12.0131]
[1728664332093,3.462,144.45,144.42,1.3631]
[1728664332297,10.65,144.46,144.42,1.3631]
[1728664332499,3.462,144.45,144.42,1.3631]
[1728664332697,10.65,144.46,144.42,1.3631]
[1728664333004,0.12502,144.47,144.42,1.3631]
[1728664333212,0.12502,144.47,144.44,10.65]
[1728664333599,3.58642,144.47,144.44,10.65]
[1728664333797,3.58642,144.47,144.44,14.1119]
[1728664334207,0.12502,144.47,144.45,3.4617]
[1728664335210,0.12502,144.47,144.44,10.65]
[1728664335403,3.58652,144.47,144.44,14.112]
[1728664336409,3.58652,144.47,144.44,3.462]
[1728664337809,16.61,144.45,144.35,0.12502]
[1728664338106,1.0019,144.44,144.35,0.12502]
[1728664338311,16.61,144.38,144.35,0.12502]
[1728664339305,3.464,144.37,144.35,0.12502]
[1728664340811,16.61,144.38,144.35,0.12502]
[1728664341109,3.4638,144.37,144.35,0.12502]
[1728664341311,16.61,144.38,144.35,0.12502]
[1728664342413,3.464,144.36,144.35,0.12502]
[1728664343118,20.074,144.36,144.35,0.12502]
[1728664346416,3.464,144.36,144.35,0.12502]
[1728664353427,3.4637,144.38,144.35,3.58912]
[1728664353617,3.4637,144.38,144.35,9.74912]
[1728664354223,16.61,144.36,144.3,14.95561725]
[1728664354422,16.61,144.36,144.29,0.12502]
[1728664354633,16.61,144.36,144.29,6.28502]
[1728664354832,16.61,144.36,144.29,21.24063725]
[1728664355020,16.61,144.36,144.29,6.28502]
[1728664355329,16.61,144.36,144.29,21.24063725]
[1728664355529,3.4647,144.34,144.31,3.4652]
[1728664355724,16.61,144.36,144.29,6.28502]
[1728664355923,3.4646,144.34,144.31,3.4652]
[1728664356529,14.1146,144.34,144.31,3.4652]
[1728664357831,3.4648,144.33,144.31,3.4652]
[1728664359627,0.09980201,144.33,144.31,3.4652]
[1728664359824,10.65,144.34,144.31,3.4652]
[1728664360428,3.4648,144.33,144.31,3.4652]
[1728664362033,14.1148,144.33,144.31,3.4652]
[1728664362227,14.1148,144.33,144.29,21.24063725]
[1728664362429,10.65,144.33,144.3,3.4653]
[1728664363429,14.1149,144.33,144.29,21.24063725]
[1728664363632,14.1149,144.33,144.31,3.4652]
[1728664364639,14.1149,144.33,144.3,3.4654]
[1728664364829,14.1149,144.33,144.29,21.24063725]
[1728664365536,14.1149,144.33,144.31,3.4652]
[1728664368028,6.9264,144.4,144.31,3.4652]
[1728664368226,10.65,144.37,144.31,10.65]
[1728664369141,3.4644,144.35,144.33,3.4646]
[1728664369330,3.4644,144.35,144.33,9.6246]
[1728664369736,14.1141,144.36,144.34,3.4645]
[1728664371433,14.1141,144.36,144.33,9.6246]
[1728664373537,3.4643,144.35,144.33,9.6246]
[1728664377539,10.65,144.34,144.33,6.16]
[1728664377737,14.1145,144.34,144.33,6.16]
[1728664381041,14.1145,144.34,144.32,3.465]
[1728664381247,14.1145,144.34,144.32,9.445]
[1728664383442,3.4645,144.34,144.32,9.445]
[1728664384742,14.1144,144.35,144.33,3.4646]
[1728664385146,3.4644,144.35,144.33,3.4646]
[1728664385545,76.36169578,144.41,144.33,10.65]
[1728664385751,10.65,144.38,144.33,11.9491]
[1728664386141,76.36169578,144.41,144.34,10.65]
[1728664386342,10.65,144.39,144.34,10.65]
[1728664386753,3.4637,144.38,144.35,3.4641]
[1728664387850,14.1137,144.38,144.35,3.4641]
[1728664388554,14.1137,144.38,144.34,10.65]
[1728664388753,14.1137,144.38,144.36,3.464]
[1728664389053,14.1137,144.38,144.36,9.444]
[1728664394650,14.1138,144.37,144.36,5.98]
[1728664399261,3.4638,144.37,144.36,5.98]
[1728664400060,10.65,144.38,144.36,5.98]
[1728664400254,14.1137,144.38,144.36,5.98]
[1728664403261,14.1138,144.37,144.36,5.98]
[1728664403455,10.65,144.37,144.33,5.76]
[1728664403760,14.1147,144.34,144.33,5.76]
[1728664405153,14.1141,144.36,144.34,3.4645]
[1728664408259,76.36169578,144.41,144.33,16.41]
[1728664408458,10.65,144.38,144.34,10.65]
[1728664408760,10.65,144.38,144.33,7.128]
[1728664408955,3.4639,144.37,144.35,3.4642]
[1728664410263,14.1139,144.37,144.35,3.4642]
[1728664410857,10.65,144.37,144.33,7.128]
[1728664411065,14.1142,144.36,144.34,3.4645]
[1728664412264,3.4642,144.36,144.34,3.4645]
[1728664413158,10.65,144.37,144.34,3.4645]
[1728664413360,14.1139,144.37,144.34,3.4645]
[1728664413861,14.1139,144.37,144.33,7.128]
[1728664414066,14.1139,144.37,144.35,3.4642]
[1728664415353,10.65,144.37,144.33,7.128]
[1728664415667,10.65,144.37,144.36,3.464]
[1728664416062,14.1137,144.38,144.36,3.464]
[1728664416259,3.4637,144.38,144.36,3.464]
[1728664416463,0.12502,144.41,144.38,3.4635]
[1728664416464,3.4632,144.4,144.38,3.4635]
[1728664416664,14.1132,144.4,144.35,10.65]
[1728664416861,14.1132,144.4,144.36,5.16711398]
[1728664417060,3.4633,144.39,144.37,14.39081398]
[1728664417358,0.12502,144.41,144.38,5.16711398]
[1728664417563,0.12502,144.41,144.37,16.41]
[1728664418068,0.12502,144.41,144.39,3.4632]
[1728664418369,0.12502,144.41,144.37,16.41]
[1728664419360,0.12502,144.41,144.4,3.4631]
[1728664421866,14.23802,144.41,144.38,4.8073]
[1728664422165,10.65,144.39,144.37,5.76]
[1728664423462,10.65,144.39,144.38,3.4636]
[1728664424272,10.65,144.39,144.37,9.2237]
[1728664426169,14.1135,144.39,144.37,9.2237]
[1728664426673,3.4636,144.38,144.37,5.76]
[1728664431779,0.12502,144.41,144.37,5.76]
[1728664432073,14.1133,144.39,144.37,5.76]
[1728664432271,14.1133,144.39,144.37,9.2238]
[1728664433077,10.65,144.4,144.37,5.76]
[1728664433279,14.23792,144.41,144.39,3.4633]
[1728664434077,3.58792,144.41,144.39,3.4633]
[1728664434277,14.23792,144.41,144.38,3.4634]
[1728664435277,3.58792,144.41,144.37,5.76]
[1728664435476,14.23792,144.41,144.39,3.4632]
[1728664441980,3.58792,144.41,144.39,3.4632]
[1728664443284,0.12502,144.41,144.4,3.4631]
[1728664443591,0.12502,144.41,144.4,14.1131]
[1728664444385,79.67711673,144.44,144.42,3.4625]
[1728664444787,76.21491673,144.44,144.41,16.29]
[1728664445092,3.462,144.45,144.43,3.4623]
[1728664450397,10.65,144.44,144.41,5.64]
[1728664450589,14.1125,144.43,144.41,5.64]
[1728664450991,10.65,144.43,144.41,5.64]
[1728664451296,3.4626,144.42,144.41,5.64]
[1728664451496,10.65,144.43,144.41,9.1028]
[1728664451699,14.1126,144.43,144.41,9.1028]
[1728664453398,3.4626,144.43,144.41,9.1028]
[1728664453602,3.4622,144.44,144.42,3.4626]
[1728664453897,77.60424022,144.49,144.41,16.29]
[1728664454202,10.65,144.46,144.43,3.4622]
[1728664454607,3.4618,144.46,144.43,3.4622]
[1728664455301,3.4618,144.46,144.43,3.4623]
[1728664455502,3.4618,144.46,144.42,10.65]
[1728664456802,3.462,144.45,144.43,3.4623]
[1728664457004,10.65,144.44,144.41,5.64]
[1728664457797,10.65,144.43,144.41,5.64]
[1728664458004,3.4626,144.42,144.41,5.64]
[1728664459002,14.1125,144.43,144.41,9.1028]
[1728664459801,3.4625,144.43,144.41,9.1028]
[1728664460303,10.65,144.44,144.41,5.64]
[1728664460504,14.1121,144.45,144.42,3.4625]
[1728664461001,3.4622,144.44,144.42,3.4625]
[1728664462091,3.4622,144.44,144.35,9.79472]
[1728664462092,10.65,144.44,144.35,2.86632]
[1728664462293,10.65,144.4,144.35,8.50632]
[1728664462502,10.65,144.4,144.36,5.64]
[1728664462696,3.4639,144.37,144.35,4.99062]
[1728664462897,10.65,144.39,144.35,17.81652]
[1728664463496,12.5641,144.45,144.35,17.81652]
[1728664463799,10.65,144.4,144.35,17.81652]
[1728664464002,5.64,144.45,144.36,10.65]
[1728664464303,10.65,144.41,144.36,10.65]
[1728664464602,10.65,144.41,144.38,3.4634]
[1728664464603,3.4631,144.4,144.38,3.4634]
[1728664464803,5.64,144.45,144.36,10.65]
[1728664465000,10.65,144.41,144.36,10.65]
[1728664465305,3.4631,144.4,144.38,3.4634]
[1728664471809,3.4631,144.4,144.37,3.4636]
[1728664472805,3.4631,144.4,144.35,17.81652]
[1728664473012,3.4631,144.4,144.38,3.4635]
[1728664476714,1.3028,144.44,144.35,17.81652]
[1728664476911,1.3028,144.44,144.37,3.4636]
[1728664477111,10.65,144.41,144.37,3.4636]
[1728664477515,3.4632,144.4,144.37,3.4636]
[1728664477718,3.4632,144.4,144.35,17.81652]
[1728664477911,3.4632,144.4,144.38,3.4635]
[1728664480317,3.4633,144.39,144.37,3.4637]
[1728664481116,14.1133,144.39,144.37,3.4637]
[1728664491422,3.4632,144.4,144.38,3.4636]
[1728664491927,10.65,144.41,144.36,10.65]
[1728664492426,1.3028,144.44,144.37,10.65]
[1728664492724,3.4627,144.42,144.4,3.463]
[1728664494630,10.65,144.44,144.41,3.4626]
[1728664495224,3.4624,144.43,144.41,3.4626]
[1728664495425,10.65,144.44,144.41,3.4626]
[1728664496528,86.85114193,144.46,144.42,10.65]
[1728664496823,86.85114193,144.46,144.42,16.29]
[1728664497427,3.4621,144.45,144.43,3.4622]
[1728664497626,86.85114193,144.46,144.42,16.29]
[1728664498532,3.4621,144.45,144.42,19.7524]
[1728664500238,3.4621,144.45,144.42,9.1024]
[1728664500638,86.85114193,144.46,144.44,3.4621]
[1728664500639,90.31294193,144.46,144.44,3.4621]
[1728664501139,90.31294193,144.46,144.42,16.29]
[1728664501338,3.4619,144.45,144.43,3.4622]
[1728664502540,86.85114193,144.46,144.43,3.4622]
[1728664502843,90.31294193,144.46,144.43,3.4622]
[1728664503536,3.462,144.45,144.43,3.4622]
[1728664504237,3.4621,144.44,144.42,9.1025]
[1728664504641,3.462,144.45,144.42,5.64]
[1728664504841,3.462,144.45,144.43,3.4623]
[1728664505935,3.462,144.45,144.4,1.3807]
[1728664505936,10.65,144.44,144.26,6.9327]
[1728664506140,10.65,144.36,144.32,5.64]
[1728664506337,10.65,144.36,144.32,9.11490612]
[1728664506534,10.65,144.36,144.32,5.64]
[1728664506845,10.65,144.36,144.33,5.64]
[1728664508132,14.114,144.36,144.33,5.64]
[1728664508336,14.114,144.36,144.31,4.836]
[1728664508537,14.114,144.36,144.32,5.64]
[1728664510842,14.114,144.36,144.31,7.0109]
[1728664512242,14.114,144.36,144.31,10.476]
[1728664513142,3.464,144.36,144.31,10.476]
[1728664513344,14.114,144.36,144.32,3.465]
[1728664522652,14.114,144.36,144.31,7.0109]
[1728664523056,14.114,144.36,144.3,3.4653]
[1728664523252,3.4649,144.33,144.3,9.1053]
[1728664523555,10.65,144.32,144.3,3.4653]
[1728664524457,5.64,144.4,144.3,10.65]
[1728664524659,5.64,144.4,144.31,10.65]
[1728664524855,10.65,144.36,144.31,10.65]
[1728664525058,3.4643,144.35,144.31,10.65]
[1728664525860,5.64,144.4,144.31,10.65]
[1728664526053,10.65,144.36,144.34,3.4645]
[1728664526755,14.1141,144.36,144.35,5.17067846]
[1728664528657,3.4644,144.35,144.32,3.4649]
[1728664528862,3.4644,144.35,144.33,5.17399788]
[1728664529165,3.4644,144.35,144.32,3.4649]
[1728664529460,14.1144,144.35,144.33,5.17400539]
[1728664529665,14.1144,144.35,144.34,5.17400539]
[1728664531764,10.65,144.35,144.29,16.41502]
[1728664532062,14.1149,144.33,144.3,5.18141396]
[1728664532266,14.1149,144.33,144.31,5.18141396]
[1728664532562,3.4649,144.33,144.32,5.18141396]
[1728664532757,14.1146,144.34,144.32,5.18141396]
[1728664532963,14.1146,144.34,144.33,5.18141396]
[1728664535360,17.53557533,144.34,144.33,5.18141396]
[1728664536165,14.1146,144.34,144.33,5.18141396]
[1728664538470,14.1146,144.34,144.29,10.77502]
[1728664538976,14.1146,144.34,144.32,3.465]
[1728664539670,3.4646,144.34,144.32,3.465]
[1728664539873,3.4646,144.34,144.33,5.18610658]
[1728664540463,14.1146,144.34,144.33,5.18610658]
[1728664543169,14.1146,144.34,144.31,3.4651]
[1728664543374,14.1146,144.34,144.32,5.19152347]
[1728664543674,14.1146,144.34,144.33,5.19152347]
[1728664546365,3.4634,144.39,144.36,3.4639]
[1728664546568,10.77502,144.41,144.37,5.19152347]
[1728664546770,10.77502,144.41,144.38,5.19307312]
[1728664546970,10.77502,144.41,144.39,5.19307312]
[1728664547170,3.4632,144.4,144.37,3.4637]
[1728664547381,3.4632,144.4,144.38,5.19227738]
[1728664547675,3.4632,144.4,144.39,5.19227738]
[1728664548273,14.1132,144.4,144.39,5.19227738]
[1728664548976,3.4632,144.4,144.39,5.19227738]
[1728664549277,0.12502,144.41,144.39,15.84227738]
[1728664549672,0.12502,144.41,144.4,5.19227738]
[1728664550076,0.12502,144.41,144.4,19.30537738]
[1728664550271,0.12502,144.41,144.4,14.1131]
[1728664550476,16.29,144.46,144.4,15.82983884]
[1728664550682,3.4619,144.45,144.42,3.4624]
[1728664550872,3.4619,144.45,144.43,5.17983884]
[1728664551181,14.23662,144.47,144.44,8.64193884]
[1728664551379,14.23662,144.47,144.44,3.4621]
[1728664551579,14.23662,144.47,144.45,5.17295809]
[1728664551782,0.12502,144.47,144.46,5.1717963]
[1728664552286,0.12502,144.47,144.44,10.65]
[1728664552483,0.12502,144.47,144.45,8.62832889]
[1728664552780,0.12502,144.47,144.45,3.4617]
[1728664553774,0.12502,144.47,144.46,3.4616]
[1728664554670,0.12502,144.47,144.46,8.61924698]
[1728664555275,0.12502,144.47,144.46,19.26924698]
[1728664555478,14.1108,144.5,144.47,3.4614]
[1728664555876,3.4609,144.49,144.47,3.4614]
[1728664556471,3.4609,144.49,144.46,3.4615]
[1728664556776,3.4608,144.5,144.45,10.65]
[1728664556978,10.65,144.5,144.45,10.65]
[1728664557180,10.65,144.5,144.46,3.4615]
[1728664557379,14.1111,144.49,144.46,3.4615]
[1728664558270,3.4612,144.48,144.46,3.4615]
[1728664558588,10.65,144.49,144.44,6.1233]
[1728664558884,3.4614,144.47,144.44,2.6613]
[1728664559082,10.65,144.46,144.44,1.3615]
[1728664559381,10.65,144.48,144.44,1.3615]
[1728664559680,10.65,144.49,144.44,15.4734]
[1728664559888,3.4614,144.47,144.44,15.4734]
[1728664561778,76.21735787,144.51,144.44,1.3615]
[1728664561976,3.4613,144.48,144.45,3.4618]
[1728664562677,3.4612,144.48,144.45,3.4617]
[1728664563175,3.4612,144.48,144.44,12.0115]
[1728664563383,3.461,144.49,144.46,14.1116]
[1728664563685,3.461,144.49,144.46,10.65]
[1728664563876,10.65,144.5,144.47,3.4614]
[1728664564083,14.1109,144.5,144.47,3.4614]
[1728664564584,14.1109,144.5,144.46,10.65]
[1728664564781,79.67785787,144.51,144.49,3.4609]
[1728664564977,79.67785787,144.51,144.47,16.29]
[1728664565778,3.4607,144.5,144.48,3.4611]
[1728664566781,14.1107,144.5,144.47,9.1012]
[1728664566980,3.4609,144.49,144.47,9.1012]
[1728664568692,3.4612,144.48,144.47,5.64]
[1728664568894,3.4612,144.48,144.44,19.0512]
[1728664569087,14.1112,144.48,144.44,19.0512]
[1728664569393,14.1112,144.48,144.45,3.4617]
[1728664570293,3.4616,144.47,144.44,22.5131]
[1728664570493,3.4616,144.47,144.44,11.8631]
[1728664570886,3.4617,144.46,144.44,10.4634]
[1728664571295,3.4617,144.46,144.44,7.0015]
[1728664572387,3.4619,144.45,144.44,5.64]
[1728664572692,10.65,144.45,144.42,3.4624]
[1728664572992,14.112,144.45,144.42,3.4624]
[1728664573184,3.462,144.45,144.41,10.77502]
[1728664573384,3.462,144.45,144.43,14.1123]
[1728664575885,14.1123,144.44,144.41,3.58772]
[1728664576093,10.65,144.44,144.41,3.58772]
[1728664576891,3.4624,144.43,144.41,3.58772]
[1728664577407,3.4624,144.43,144.41,0.12502]
[1728664579496,16.29,144.42,144.24,3.47625837]
[1728664579705,16.29,144.42,144.3,12.0101]
[1728664579706,10.65,144.36,144.3,12.0101]
[1728664579892,14.114,144.36,144.31,10.65]
[1728664580089,14.114,144.36,144.31,14.1151]
[1728664580390,3.464,144.36,144.31,3.4651]
[1728664581693,9.1039,144.37,144.33,3.4646]
[1728664581892,5.64,144.37,144.33,3.4646]
[1728664582092,16.64,144.4,144.33,3.4646]
[1728664582288,5.64,144.39,144.33,3.4646]
[1728664582490,16.64,144.4,144.31,18.0121]
[1728664582695,5.64,144.4,144.35,3.58932]
[1728664582892,3.4636,144.38,144.35,3.58932]
[1728664583391,3.4631,144.4,144.35,0.12502]
[1728664583599,3.4631,144.4,144.36,1.3334]
[1728664584196,3.4633,144.39,144.36,1.3334]
[1728664584589,5.62,144.41,144.36,4.7973]
[1728664585100,3.4634,144.39,144.36,4.7973]
[1728664585497,5.62,144.41,144.36,1.3334]
[1728664585800,3.4632,144.4,144.37,3.4638]
[1728664586602,3.4632,144.4,144.36,4.7973]
[1728664587203,5.62,144.41,144.36,4.7973]
[1728664587501,3.4633,144.39,144.36,4.7973]
[1728664593202,22.26,144.41,144.36,1.3334]
[1728664593407,22.26,144.41,144.35,0.12502]
[1728664594301,3.4639,144.37,144.35,0.12502]
[1728664595003,22.26,144.41,144.35,0.12502]
[1728664595200,3.4635,144.39,144.36,3.4639]
[1728664601505,3.464,144.37,144.35,0.12502]
[1728664602908,22.26,144.42,144.35,0.12502]
[1728664603109,3.4632,144.4,144.37,3.4636]
[1728664603511,22.26,144.42,144.37,3.4636]
[1728664603713,3.4633,144.39,144.37,3.4636]
[1728664605516,16.64,144.42,144.37,3.4636]
[1728664605718,3.4632,144.4,144.37,3.4636]
[1728664606017,3.4632,144.4,144.35,0.12502]
[1728664607319,3.4632,144.4,144.37,3.4636]
[1728664608732,3.4632,144.4,144.35,0.12502]
[1728664608928,3.4632,144.4,144.38,3.4634]
[1728664609620,3.463,144.41,144.39,3.4632]
[1728664609824,5.62,144.43,144.35,16.76502]
[1728664610126,1.25042,144.47,144.37,16.64]
[1728664610335,5.62,144.46,144.38,1.3047]
[1728664610627,10.64,144.42,144.38,11.9447]
[1728664611129,14.103,144.41,144.39,3.4632]
[1728664611733,10.64,144.41,144.38,1.3047]
[1728664611935,3.4632,144.4,144.38,4.7681]
[1728664612627,14.1029,144.41,144.39,3.4633]
[1728664613131,10.64,144.42,144.38,1.3047]
[1728664613429,3.4628,144.41,144.39,3.4632]
[1728664622640,3.40292437,144.46,144.4,10.64]
[1728664622938,10.64,144.43,144.38,11.9447]
[1728664623136,3.4632,144.4,144.38,4.7681]
[1728664623536,10.64,144.41,144.38,1.3047]
[1728664623739,14.103,144.41,144.39,3.4633]
[1728664624335,3.463,144.41,144.39,3.4633]
[1728664626040,10.64,144.42,144.38,1.3047]
[1728664626231,3.4632,144.4,144.38,4.7682]
[1728664626737,3.42739069,144.44,144.35,0.12502]
[1728664626738,10.64,144.39,144.35,0.12502]
[1728664626938,14.1037,144.38,144.36,3.464]
[1728664628938,3.4638,144.37,144.36,3.464]
[1728664629138,3.4638,144.37,144.35,3.58922]
[1728664631645,10.64,144.38,144.35,0.12502]
[1728664631844,5.62,144.42,144.36,10.64]
[1728664632145,16.26,144.42,144.37,10.64]
[1728664632446,3.463,144.41,144.39,3.4633]
[1728664632847,3.463,144.41,144.39,14.1033]
[1728664633248,3.463,144.41,144.39,3.4633]
[1728664633444,10.64,144.41,144.36,10.64]
[1728664633749,3.4633,144.4,144.37,3.4637]
[1728664634147,3.4633,144.4,144.38,3.4635]
[1728664635250,10.64,144.39,144.36,10.64]
[1728664635549,14.1034,144.39,144.37,3.4637]
[1728664635949,10.64,144.39,144.36,10.64]
[1728664636347,10.64,144.41,144.38,3.4634]
[1728664636545,10.64,144.41,144.37,10.64]
[1728664637351,14.103,144.41,144.38,3.4635]
[1728664637952,14.103,144.41,144.37,10.64]
[1728664638151,14.103,144.41,144.39,3.4633]
[1728664641249,14.103,144.41,144.36,10.64]
[1728664641454,14.103,144.41,144.38,3.4634]
[1728664644458,3.4631,144.4,144.38,3.4634]
[1728664645859,3.4636,144.38,144.36,3.464]
[1728664646060,14.1036,144.38,144.36,3.464]
[1728664646261,14.1036,144.38,144.35,0.12502]
[1728664646556,14.1036,144.38,144.35,3.58912]
[1728664646757,14.1036,144.38,144.35,0.12502]
[1728664647257,14.1036,144.38,144.36,3.4639]
[1728664648661,3.4636,144.38,144.36,3.4639]
[1728664660066,3.464,144.36,144.35,0.12502]
[1728664665267,10.64,144.38,144.35,0.12502]
[1728664665567,14.1037,144.38,144.35,3.58912]
[1728664666374,3.4638,144.37,144.35,3.58912]
[1728664666971,10.64,144.38,144.36,3.4638]
[1728664667170,76.22535589,144.42,144.36,10.64]
[1728664667481,3.4632,144.4,144.37,10.64]